[Event "Sunway Sitges Chess Festival"]
[Date "2024.12.21"]
[White "Aryan Mehta"]
[Black "Sofronie, Vladimir"]
[WhiteElo "1762"]
[BlackElo "2083"]
[Round "5.36"]
[Result "0-1"]
[TimeControl "40/5400+30:1800+30"]

1. d4 {[%clk 1:30:54]} 1... Nf6 {[%clk 1:30:56]} 2. c4 {[%clk 1:31:19]} 2... c5
{[%clk 1:31:05]} 3. d5 {[%clk 1:31:45]} 3... e6 {[%clk 1:31:26]} 4. Nc3 {[%clk
1:32:09]} 4... exd5 {[%clk 1:31:51]} 5. cxd5 {[%clk 1:32:33]} 5... d6 {[%clk
1:32:15]} 6. e4 {[%clk 1:32:54]} 6... g6 {[%clk 1:32:34]} 7. f4 {[%clk 1:33:13]}
7... Bg7 {[%clk 1:32:36]} 8. Bb5+ {[%clk 1:33:36]} 8... Nfd7 {[%clk 1:33:01]} 9.
a4 {[%clk 1:33:55]} 9... O-O {[%clk 1:31:49]} 10. Nf3 {[%clk 1:34:17]} 10... Na6
{[%clk 1:31:04]} 11. O-O {[%clk 1:34:10]} 11... Nb4 {[%clk 1:30:23]} 12. Be3
{[%clk 1:28:25]} 12... a6 {[%clk 1:29:38]} 13. Bc4 {[%clk 1:28:27]} 13... Rb8
{[%clk 1:21:56]} 14. Qd2 {[%clk 1:18:51]} 14... Re8 {[%clk 1:19:13]} 15. Ng5
{[%clk 0:59:07]} 15... Nb6 {[%clk 1:14:35]} 16. Be2 {[%clk 0:54:00]} 16... h6
{[%clk 1:13:56]} 17. Nf3 {[%clk 0:52:32]} 17... Bg4 {[%clk 1:11:50]} 18. h3
{[%clk 0:43:14]} 18... Bxf3 {[%clk 1:12:13]} 19. Rxf3 {[%clk 0:43:34]} 19... Nd7
{[%clk 1:11:06]} 20. Rd1 {[%clk 0:39:42]} 20... Kh7 {[%clk 1:06:57]} 21. Bd3
{[%clk 0:36:03]} 21... Nxd3 {[%clk 1:06:27]} 22. Qxd3 {[%clk 0:36:30]} 22... b5
{[%clk 1:04:33]} 23. axb5 {[%clk 0:36:29]} 23... axb5 {[%clk 1:04:56]} 24. Bf2
{[%clk 0:29:05]} 24... Qa5 {[%clk 1:00:56]} 25. h4 {[%clk 0:28:21]} 25... b4
{[%clk 1:01:04]} 26. Ne2 {[%clk 0:28:21]} 26... Qb5 {[%clk 1:00:40]} 27. Qd2
{[%clk 0:25:10]} 27... Nf6 {[%clk 0:53:04]} 28. e5 {[%clk 0:24:00]} 28... dxe5
{[%clk 0:53:15]} 29. f5 {[%clk 0:23:41]} 29... e4 {[%clk 0:47:28]} 30. fxg6+
{[%clk 0:23:15]} 30... fxg6 {[%clk 0:47:55]} 31. Rg3 {[%clk 0:23:16]} 31... e3
{[%clk 0:34:47]} 32. Rxe3 {[%clk 0:23:24]} 32... Ne4 {[%clk 0:35:09]} 33. Qd3
{[%clk 0:21:27]} 33... c4 {[%clk 0:32:22]} 34. Qb1 {[%clk 0:19:53]} 34... Nxf2
{[%clk 0:31:59]} 35. Kxf2 {[%clk 0:17:27]} 35... Qc5 {[%clk 0:32:20]} 36. Qc1
{[%clk 0:17:35]} 36... Rxe3 {[%clk 0:32:31]} 37. Qxe3 {[%clk 0:17:43]} 37...
Rf8+ {[%clk 0:32:56]} 38. Nf4 {[%clk 0:18:04]} 38... Rxf4+ {[%clk 0:33:16]} 39.
Ke2 {[%clk 0:18:29]} 39... Qxe3+ {[%clk 0:33:12]} 40. Kxe3 {[%clk 0:48:57]}
40... Rf8 {[%clk 1:03:25]} 41. Ke4 {[%clk 0:49:15]} 41... Bxb2 {[%clk 1:03:47]}
42. d6 {[%clk 0:49:35]} 42... c3 {[%clk 1:04:04]} 43. Kd3 {[%clk 0:49:54]} 43...
b3 {[%clk 1:04:17]} 44. Kd4 {[%clk 0:49:35]} 0-1

[Variant "Standard"]
[Site "Europe Echecs"]

[Event "Sunway Sitges Chess Festival"]
[Date "2024.12.21"]
[White "Boix Redorta, Roc"]
[Black "Conradie, Dirk Cornelis Uys"]
[WhiteElo "2084"]
[BlackElo "1794"]
[Round "5.37"]
[Result "1-0"]
[TimeControl "40/5400+30:1800+30"]

1. e4 {[%clk 1:26:47]} 1... c5 {[%clk 1:30:51]} 2. Nf3 {[%clk 1:27:14]} 2... d6
{[%clk 1:31:13]} 3. d4 {[%clk 1:27:40]} 3... cxd4 {[%clk 1:31:33]} 4. Nxd4
{[%clk 1:28:05]} 4... Nf6 {[%clk 1:31:56]} 5. Nc3 {[%clk 1:28:31]} 5... Nc6
{[%clk 1:32:17]} 6. Bc4 {[%clk 1:28:46]} 6... Qb6 {[%clk 4:44:14]} 7. Nb3 {[%clk
1:28:42]} 7... e6 {[%clk 1:32:56]} 8. O-O {[%clk 1:28:28]} 8... Be7 {[%clk
1:33:09]} 9. Be3 {[%clk 1:28:48]} 9... Qd8 {[%clk 1:32:23]} 10. f4 {[%clk
1:27:47]} 10... O-O {[%clk 1:32:34]} 11. Qe2 {[%clk 1:24:38]} 11... a6 {[%clk
1:31:07]} 12. a4 {[%clk 1:24:59]} 12... Na5 {[%clk 1:20:44]} 13. e5 {[%clk
1:20:31]} 13... dxe5 {[%clk 1:20:29]} 14. fxe5 {[%clk 1:20:55]} 14... Nd7 {[%clk
1:20:49]} 15. Bd3 {[%clk 1:20:20]} 15... f5 {[%clk 1:09:54]} 16. exf6 {[%clk
1:20:23]} 16... Nxf6 {[%clk 1:10:15]} 17. Rad1 {[%clk 1:18:32]} 17... Bd7 {[%clk
1:09:16]} 18. Rxf6 {[%clk 1:09:31]} 18... Rxf6 {[%clk 1:05:41]} 19. Qh5 {[%clk
1:09:43]} 19... g6 {[%clk 1:02:54]} 20. Qxa5 {[%clk 1:10:07]} 20... Qxa5 {[%clk
1:03:14]} 21. Nxa5 {[%clk 1:10:32]} 21... Bc6 {[%clk 0:52:02]} 22. Nxc6 {[%clk
1:10:25]} 22... bxc6 {[%clk 0:52:24]} 23. Be4 {[%clk 1:10:44]} 23... Rc8 {[%clk
0:51:30]} 24. Rd7 {[%clk 1:11:06]} 24... Bb4 {[%clk 0:50:35]} 25. Na2 {[%clk
1:10:15]} 25... c5 {[%clk 0:49:04]} 26. Bb7 {[%clk 1:10:06]} 26... Rcf8 {[%clk
0:46:50]} 27. Bxa6 {[%clk 1:10:28]} 27... Be1 {[%clk 0:46:43]} 28. Bxc5 {[%clk
1:09:52]} 28... Bf2+ {[%clk 0:46:53]} 29. Bxf2 {[%clk 1:10:19]} 29... Rxf2
{[%clk 0:47:17]} 30. Nb4 {[%clk 1:10:15]} 30... R8f4 {[%clk 0:46:13]} 31. h3
{[%clk 1:18:17]} 31... Rf5 {[%clk 0:45:56]} 32. Bc4 {[%clk 1:10:37]} 32... Rf6
{[%clk 0:45:53]} 33. Bxe6+ {[%clk 1:11:04]} 33... Kf8 {[%clk 0:45:57]} 34. Bc4
{[%clk 1:11:14]} 34... h5 {[%clk 0:46:10]} 35. Nd5 {[%clk 1:11:30]} 35... Rf7
{[%clk 0:45:28]} 36. Rxf7+ {[%clk 1:11:46]} 36... Kxf7 {[%clk 0:45:45]} 37. Kxf2
{[%clk 1:12:12]} 37... g5 {[%clk 0:46:01]} 38. a5 {[%clk 1:12:38]} 38... g4
{[%clk 0:46:22]} 39. a6 {[%clk 1:13:03]} 39... gxh3 {[%clk 0:46:43]} 40. gxh3
{[%clk 1:43:27]} 40... h4 {[%clk 1:17:05]} 41. a7 {[%clk 1:43:56]} 41... Ke6
{[%clk 1:17:18]} 42. a8=Q {[%clk 1:44:17]} 42... Kd6 {[%clk 1:17:30]} 43. Qd8+
{[%clk 1:44:42]} 43... Kc5 {[%clk 1:17:50]} 44. Qb6+ {[%clk 1:44:31]} 44... Kxc4
{[%clk 1:18:10]} 45. Ne3# {[%clk 1:44:30]} 1-0

[Variant "Standard"]
[Site "Europe Echecs"]

[Event "Sunway Sitges Chess Festival"]
[Date "2024.12.21"]
[White "Kumar, Sanjit S"]
[Black "Yang, Sung-Jui"]
[WhiteElo "2034"]
[BlackElo "1882"]
[Round "5.38"]
[Result "1-0"]
[TimeControl "40/5400+30:1800+30"]

1. d4 {[%clk 1:28:09]} 1... d5 {[%clk 1:30:50]} 2. c4 {[%clk 1:28:35]} 2... e6
{[%clk 1:31:13]} 3. Nc3 {[%clk 1:29:01]} 3... Nf6 {[%clk 1:31:37]} 4. cxd5
{[%clk 1:29:27]} 4... exd5 {[%clk 1:31:59]} 5. Bg5 {[%clk 1:29:53]} 5... c6
{[%clk 1:32:09]} 6. Qc2 {[%clk 1:30:15]} 6... Bd6 {[%clk 1:32:31]} 7. e3 {[%clk
1:30:40]} 7... O-O {[%clk 1:32:50]} 8. Bd3 {[%clk 1:31:06]} 8... h6 {[%clk
1:33:12]} 9. Bh4 {[%clk 1:31:22]} 9... Re8 {[%clk 1:33:30]} 10. Nge2 {[%clk
1:30:18]} 10... a5 {[%clk 1:33:49]} 11. Bg3 {[%clk 1:27:48]} 11... Na6 {[%clk
1:34:01]} 12. a3 {[%clk 1:25:31]} 12... Nc7 {[%clk 1:34:23]} 13. O-O {[%clk
1:23:31]} 13... Bxg3 {[%clk 1:34:45]} 14. Nxg3 {[%clk 1:23:55]} 14... h5 {[%clk
1:35:06]} 15. h3 {[%clk 1:20:19]} 15... h4 {[%clk 1:35:07]} 16. Nge2 {[%clk
1:17:08]} 16... Nh5 {[%clk 1:34:09]} 17. b4 {[%clk 1:13:50]} 17... Ne6 {[%clk
1:32:36]} 18. Bf5 {[%clk 1:12:25]} 18... Ng5 {[%clk 1:28:25]} 19. b5 {[%clk
1:08:41]} 19... g6 {[%clk 1:15:58]} 20. Bxg6 {[%clk 0:56:32]} 20... fxg6 {[%clk
1:16:14]} 21. Qxg6+ {[%clk 0:56:55]} 21... Ng7 {[%clk 1:16:42]} 22. f4 {[%clk
0:49:18]} 22... Nxh3+ {[%clk 1:11:55]} 23. gxh3 {[%clk 0:49:36]} 23... Bf5
{[%clk 1:12:17]} 24. Qg2 {[%clk 0:46:52]} 24... Rxe3 {[%clk 1:11:55]} 25. Rf3
{[%clk 0:47:13]} 25... Re6 {[%clk 1:12:04]} 26. Kh2 {[%clk 0:45:30]} 26... Rg6
{[%clk 1:07:44]} 27. Qf2 {[%clk 0:45:35]} 27... cxb5 {[%clk 0:49:24]} 28. Re3
{[%clk 0:44:38]} 28... Be4 29. Nxe4 dxe4 {[%clk 0:49:42]} 30. Rxe4 {[%clk
0:45:00]} 30... Nf5 {[%clk 0:48:52]} 31. Re5 {[%clk 0:40:33]} 31... Qd7 {[%clk
0:48:00]} 32. Rg1 {[%clk 0:32:29]} 32... Ra6 {[%clk 0:47:51]} 33. Rg5 {[%clk
0:30:35]} 33... Rxg5 {[%clk 0:44:19]} 34. fxg5 {[%clk 0:30:53]} 34... Ng3 {[%clk
0:44:37]} 35. Nxg3 {[%clk 0:27:36]} 35... hxg3+ {[%clk 0:44:54]} 36. Kxg3 {[%clk
0:26:24]} 36... Rd6 {[%clk 0:43:39]} 37. Qf5 {[%clk 0:23:00]} 37... Qxf5 {[%clk
0:42:25]} 38. Rxf5 {[%clk 0:23:24]} 38... Rxd4 {[%clk 0:31:49]} 39. Rxb5 {[%clk
0:23:31]} 39... Rd3+ {[%clk 0:32:09]} 40. Kg4 {[%clk 0:53:56]} 40... Rxa3 {[%clk
1:02:32]} 41. Rxb7 {[%clk 0:54:23]} 41... a4 {[%clk 1:02:46]} 42. h4 {[%clk
0:53:57]} 42... Ra1 {[%clk 1:03:06]} 43. Kf5 {[%clk 0:54:19]} 43... Rc1 {[%clk
0:58:52]} 44. Ra7 {[%clk 0:54:40]} 44... Rc5+ {[%clk 0:59:05]} 45. Kg6 {[%clk
0:55:05]} 45... Rc6+ {[%clk 0:58:54]} 46. Kh5 {[%clk 0:55:30]} 46... Rc4 {[%clk
0:58:56]} 47. g6 {[%clk 0:55:55]} 47... Rb4 {[%clk 0:57:24]} 48. Kg5 {[%clk
0:56:19]} 48... Rc4 {[%clk 0:57:12]} 49. h5 {[%clk 0:56:36]} 49... Rc5+ {[%clk
0:56:28]} 50. Kh6 {[%clk 0:56:59]} 50... Rc8 {[%clk 0:56:40]} 51. Rxa4 {[%clk
0:57:21]} 51... Rb8 {[%clk 0:57:02]} 52. Ra5 {[%clk 0:56:02]} 52... Rf8 {[%clk
0:57:16]} 53. Kg5 {[%clk 0:56:23]} 53... Rb8 {[%clk 0:57:27]} 54. h6 {[%clk
0:56:35]} 54... Rc8 {[%clk 0:57:29]} 55. h7+ {[%clk 0:56:34]} 55... Kg7 {[%clk
0:55:48]} 56. Ra7+ {[%clk 0:56:57]} 56... Kh8 {[%clk 0:56:13]} 57. Kh6 {[%clk
0:57:23]} 1-0

[Variant "Standard"]
[Site "Europe Echecs"]

[Event "Sunway Sitges Chess Festival"]
[Date "2024.12.21"]
[White "Koenig, Christian"]
[Black "Schulman, Julia"]
[WhiteElo "2008"]
[BlackElo "1852"]
[Round "5.39"]
[Result "1-0"]
[TimeControl "40/5400+30:1800+30"]

1. e4 {[%clk 1:30:56]} 1... c5 {[%clk 1:30:53]} 2. Nf3 {[%clk 1:31:19]} 2... d6
{[%clk 1:31:13]} 3. d4 {[%clk 1:31:39]} 3... cxd4 {[%clk 1:31:35]} 4. Nxd4
{[%clk 1:31:24]} 4... Nf6 {[%clk 1:31:48]} 5. Nc3 {[%clk 1:32:23]} 5... a6
{[%clk 1:30:32]} 6. Bg5 {[%clk 1:29:42]} 6... e6 {[%clk 1:30:53]} 7. f4 {[%clk
1:27:53]} 7... Be7 {[%clk 1:27:48]} 8. Qf3 {[%clk 1:21:47]} 8... O-O {[%clk
1:21:32]} 9. O-O-O {[%clk 1:27:58]} 9... Qc7 {[%clk 1:17:18]} 10. Bd3 {[%clk
1:27:05]} 10... Nbd7 {[%clk 1:14:30]} 11. Rhe1 {[%clk 1:23:32]} 11... Nc5 {[%clk
0:58:03]} 12. Kb1 {[%clk 0:59:15]} 12... Nxd3 {[%clk 0:55:30]} 13. Rxd3 {[%clk
1:04:35]} 13... h6 {[%clk 0:52:03]} 14. Bxf6 {[%clk 1:00:50]} 14... Bxf6 {[%clk
0:51:49]} 15. Nde2 {[%clk 0:55:39]} 15... Bd7 {[%clk 0:47:09]} 16. g4 {[%clk
0:47:01]} 16... Bb5 {[%clk 0:39:13]} 17. Nxb5 {[%clk 0:48:47]} 17... axb5 {[%clk
0:39:38]} 18. Nc1 {[%clk 0:40:33]} 18... Rfc8 {[%clk 0:31:30]} 19. Re2 {[%clk
0:38:22]} 19... b4 {[%clk 0:29:22]} 20. Qg3 {[%clk 0:31:43]} 20... Qa5 {[%clk
0:26:31]} 21. h4 {[%clk 0:25:30]} 21... Be7 {[%clk 0:25:32]} 22. g5 {[%clk
0:44:07]} 22... hxg5 {[%clk 0:25:13]} 23. hxg5 {[%clk 0:35:53]} 23... g6 {[%clk
0:09:39]} 24. Rh2 {[%clk 0:25:05]} 24... Bf8 {[%clk 0:08:13]} 25. Qh3 {[%clk
0:25:00]} 25... Bg7 {[%clk 0:08:37]} 26. Rxd6 {[%clk 0:24:05]} 26... Qc5 {[%clk
0:05:59]} 27. Rd3 {[%clk 0:15:45]} 27... Ra6 {[%clk 0:04:22]} 28. Rhd2 {[%clk
0:21:50]} 28... Qa5 {[%clk 0:04:45]} 29. Rd7 {[%clk 0:19:30]} 29... Rca8 {[%clk
0:03:27]} 30. Qb3 {[%clk 0:17:50]} 30... Qb6 31. f5 {[%clk 0:16:07]} 31... gxf5
{[%clk 0:01:55]} 32. exf5 {[%clk 0:15:19]} 32... Be5 {[%clk 0:01:36]} 33. g6
{[%clk 0:14:41]} 33... fxg6 {[%clk 0:00:-17]} 34. Qh3 {[%clk 0:13:22]} 34... Kf8
{[%clk 0:-1:-9]} 35. Qh7 {[%clk 0:12:55]} 1-0

[Variant "Standard"]
[Site "Europe Echecs"]

[Event "Sunway Sitges Chess Festival"]
[Date "2024.12.21"]
[White "Sayce, Hannah"]
[Black "Rana, Oliver"]
[WhiteElo "1821"]
[BlackElo "1911"]
[Round "5.40"]
[Result "1-0"]
[TimeControl "40/5400+30:1800+30"]

1. e4 {[%clk 1:30:55]} 1... c6 {[%clk 1:23:54]} 2. Nf3 {[%clk 1:30:59]} 2... d5
{[%clk 1:24:03]} 3. Nc3 {[%clk 1:31:21]} 3... dxe4 {[%clk 1:24:07]} 4. Nxe4
{[%clk 1:31:41]} 4... Nd7 {[%clk 1:24:25]} 5. Bc4 {[%clk 1:31:54]} 5... Ngf6
{[%clk 1:24:22]} 6. Neg5 {[%clk 1:32:07]} 6... e6 {[%clk 1:22:56]} 7. Qe2 {[%clk
1:32:29]} 7... Bd6 {[%clk 1:22:32]} 8. Nxf7 {[%clk 1:28:15]} 8... Qe7 {[%clk
1:21:43]} 9. Nxh8 {[%clk 1:28:15]} 9... Nb6 {[%clk 1:21:26]} 10. Bb3 {[%clk
1:26:55]} 10... Nbd5 {[%clk 1:20:23]} 11. d4 {[%clk 1:26:20]} 11... Qf8 {[%clk
1:20:39]} 12. Ng5 {[%clk 1:25:34]} 1-0

[Variant "Standard"]
[Site "Europe Echecs"]

[Event "Sunway Sitges Chess Festival"]
[Date "2024.12.21"]
[White "Nalbandyan, Vahan"]
[Black "Safin Safarullakhan"]
[WhiteElo "2197"]
[BlackElo "1825"]
[Round "5.41"]
[Result "1-0"]
[TimeControl "40/5400+30:1800+30"]

1. d4 {[%clk 1:30:19]} 1... Nf6 {[%clk 1:30:44]} 2. Nc3 {[%clk 1:30:12]} 2... d5
{[%clk 1:30:56]} 3. Bf4 {[%clk 1:30:26]} 3... e6 {[%clk 1:30:44]} 4. Nb5 {[%clk
1:30:32]} 4... Na6 {[%clk 1:30:55]} 5. e3 {[%clk 1:30:51]} 5... Be7 {[%clk
1:30:52]} 6. Nf3 {[%clk 1:30:59]} 6... O-O {[%clk 1:30:46]} 7. h4 {[%clk
1:28:55]} 7... Ne4 {[%clk 1:28:48]} 8. Bd3 {[%clk 1:24:59]} 8... f5 {[%clk
1:27:24]} 9. Ne5 {[%clk 1:22:47]} 9... c6 {[%clk 1:26:44]} 10. Nc3 {[%clk
1:21:57]} 10... Nxc3 {[%clk 1:14:38]} 11. bxc3 {[%clk 1:22:15]} 11... Qa5 {[%clk
1:14:52]} 12. Kf1 {[%clk 1:15:01]} 12... Bf6 {[%clk 1:13:45]} 13. Rh3 {[%clk
1:12:03]} 13... Qxc3 {[%clk 1:06:50]} 14. Bxa6 {[%clk 1:07:53]} 14... bxa6
{[%clk 1:07:02]} 15. Rb1 {[%clk 1:08:07]} 15... c5 {[%clk 0:53:03]} 16. Kg1
{[%clk 1:06:12]} 16... Bxe5 {[%clk 0:48:51]} 17. Bxe5 {[%clk 1:05:49]} 17... Rf7
{[%clk 0:48:38]} 18. Rg3 {[%clk 1:05:16]} 18... Bd7 {[%clk 0:47:30]} 19. Qh5
{[%clk 0:45:02]} 19... Bb5 {[%clk 0:34:55]} 20. Qh6 {[%clk 0:44:16]} 20... Kf8
{[%clk 0:24:01]} 21. Rxg7 {[%clk 0:44:29]} 21... cxd4 {[%clk 0:23:53]} 22. Bd6+
{[%clk 0:44:40]} 22... Ke8 {[%clk 0:24:08]} 23. Qxe6+ {[%clk 0:45:04]} 23... Kd8
{[%clk 0:24:17]} 24. Rg8+ {[%clk 0:45:27]} 24... Rf8 {[%clk 0:24:35]} 25. Rxf8+
{[%clk 0:45:50]} 25... Be8 {[%clk 0:24:55]} 26. Rxe8# {[%clk 0:46:10]} 1-0

[Variant "Standard"]
[Site "Europe Echecs"]

[Event "Sunway Sitges Chess Festival"]
[Date "2024.12.21"]
[White "Pellicer Pi, Jordi"]
[Black "Pontiroli, Luca"]
[WhiteElo "1798"]
[BlackElo "1687"]
[Round "5.42"]
[Result "1-0"]
[TimeControl "40/5400+30:1800+30"]

1. e4 {[%clk 1:14:44]} 1... e6 {[%clk 1:30:52]} 2. d4 {[%clk 1:14:59]} 2... d5
{[%clk 1:31:16]} 3. e5 {[%clk 1:15:16]} 3... c5 {[%clk 1:31:38]} 4. c3 {[%clk
1:15:37]} 4... Nc6 {[%clk 1:32:01]} 5. Nf3 {[%clk 1:15:53]} 5... Qb6 {[%clk
1:32:17]} 6. Bd3 {[%clk 1:16:01]} 6... cxd4 {[%clk 1:32:21]} 7. O-O {[%clk
1:16:19]} 7... Bd7 {[%clk 1:30:09]} 8. Re1 {[%clk 1:16:21]} 8... Rc8 {[%clk
1:23:20]} 9. a3 {[%clk 1:16:00]} 9... dxc3 {[%clk 1:20:49]} 10. Nxc3 {[%clk
1:15:22]} 10... Nge7 {[%clk 1:03:30]} 11. h4 {[%clk 1:14:38]} 11... a6 {[%clk
1:00:21]} 12. b4 {[%clk 1:06:39]} 12... Nxe5 {[%clk 0:52:32]} 13. Nxe5 {[%clk
1:06:05]} 13... Rxc3 {[%clk 0:52:31]} 14. Be3 {[%clk 1:05:45]} 14... Qd8 {[%clk
0:44:36]} 15. Bd4 {[%clk 1:02:40]} 15... Rc8 {[%clk 0:43:14]} 16. Qh5 {[%clk
0:54:46]} 16... g6 {[%clk 0:35:40]} 17. Qf3 {[%clk 0:55:03]} 17... Nf5 {[%clk
0:14:56]} 18. Bxf5 {[%clk 0:54:14]} 18... gxf5 {[%clk 0:14:47]} 19. Nxd7 {[%clk
0:53:47]} 19... Kxd7 {[%clk 0:14:47]} 20. Bxh8 {[%clk 0:53:12]} 20... Bxb4
{[%clk 0:15:07]} 21. axb4 {[%clk 0:53:16]} 21... Qxh8 {[%clk 0:15:30]} 22. Rac1
{[%clk 0:53:13]} 22... Qd4 {[%clk 0:08:50]} 23. Rxc8 {[%clk 0:52:14]} 23... Kxc8
{[%clk 0:09:14]} 24. Qg3 {[%clk 0:50:57]} 24... Qg4 {[%clk 0:06:09]} 25. Rc1+
{[%clk 0:50:57]} 25... Kd7 {[%clk 0:05:43]} 26. Rc7+ {[%clk 0:51:05]} 26... Ke8
{[%clk 0:05:48]} 27. Qd6 {[%clk 0:51:16]} 1-0

[Variant "Standard"]
[Site "Europe Echecs"]

[Event "Sunway Sitges Chess Festival"]
[Date "2024.12.21"]
[White "Aloma Vidal, Robert"]
[Black "Maurizzi, Marc`Andria"]
[WhiteElo "2398"]
[BlackElo "2477"]
[Round "6.1"]
[Result "0-1"]
[TimeControl "40/5400+30:1800+30"]

1. Nf3 {[%clk 1:30:54]} 1... Nf6 {[%clk 1:30:19]} 2. d4 {[%clk 1:31:15]} 2... g6
{[%clk 1:30:27]} 3. g3 {[%clk 1:31:37]} 3... Bg7 {[%clk 1:30:53]} 4. Bg2 {[%clk
1:32:02]} 4... O-O {[%clk 1:31:04]} 5. O-O {[%clk 1:32:25]} 5... d6 {[%clk
1:31:32]} 6. Nc3 {[%clk 1:32:47]} 6... Nbd7 {[%clk 1:27:03]} 7. a4 {[%clk
1:33:07]} 7... c6 {[%clk 1:18:23]} 8. a5 {[%clk 1:32:31]} 8... Qc7 {[%clk
1:17:59]} 9. b4 {[%clk 1:11:59]} 9... Nd5 {[%clk 1:10:50]} 10. Na2 {[%clk
1:04:14]} 10... e5 {[%clk 1:03:56]} 11. c4 {[%clk 1:00:17]} 11... N5f6 {[%clk
1:01:47]} 12. Bb2 {[%clk 0:40:58]} 12... e4 {[%clk 0:58:11]} 13. Ng5 {[%clk
0:39:47]} 13... d5 {[%clk 0:55:19]} 14. cxd5 {[%clk 0:36:14]} 14... cxd5 {[%clk
0:55:30]} 15. Nc3 {[%clk 0:36:09]} 15... Rd8 {[%clk 0:48:47]} 16. Rc1 {[%clk
0:34:00]} 16... Qb8 {[%clk 0:46:17]} 17. Nb5 {[%clk 0:14:03]} 17... h6 {[%clk
0:43:45]} 18. Nh3 {[%clk 0:13:09]} 18... Ne8 {[%clk 0:42:47]} 19. Nf4 {[%clk
0:10:58]} 19... Ndf6 {[%clk 0:41:55]} 20. f3 {[%clk 0:08:59]} 20... g5 {[%clk
0:38:19]} 21. Nh3 {[%clk 0:09:21]} 21... Bd7 {[%clk 0:37:27]} 22. Nc3 {[%clk
0:09:38]} 22... e3 {[%clk 0:37:32]} 23. Qb3 {[%clk 0:07:44]} 23... Nd6 {[%clk
0:36:35]} 24. Nd1 {[%clk 0:07:40]} 24... Nc4 {[%clk 0:36:26]} 25. Re1 {[%clk
0:05:20]} 25... Re8 {[%clk 0:33:50]} 26. Rc3 {[%clk 0:05:48]} 26... Nh5 {[%clk
0:31:57]} 27. Rxe3 {[%clk 0:04:01]} 27... Nxe3 {[%clk 0:30:33]} 28. Nxe3 {[%clk
0:04:29]} 28... Nxg3 {[%clk 0:30:03]} 29. Nf2 {[%clk 0:03:50]} 29... Nh5 {[%clk
0:29:41]} 30. Qxd5 {[%clk 0:02:51]} 30... Be6 {[%clk 0:27:06]} 31. Qb5 {[%clk
0:02:55]} 31... Nf4 {[%clk 0:26:10]} 32. Bf1 {[%clk 0:03:05]} 32... a6 {[%clk
0:24:33]} 33. Qb6 {[%clk 0:03:09]} 33... Bd7 {[%clk 0:24:02]} 34. Nc4 {[%clk
0:01:57]} 34... Re6 {[%clk 0:23:38]} 35. Qc5 {[%clk 0:00:57]} 35... Bf8 {[%clk
0:21:24]} 36. Qf5 {[%clk 0:01:18]} 36... Rxe2 {[%clk 0:21:15]} 37. Qxd7 {[%clk
0:01:29]} 37... Rxe1 {[%clk 0:21:41]} 38. Ng4 {[%clk 0:01:06]} 38... Qd8 {[%clk
0:19:41]} 39. Qf5 {[%clk 0:01:17]} 39... Bg7 {[%clk 0:19:49]} 40. Nce5 {[%clk
0:31:16]} 40... Qe7 {[%clk 0:48:33]} 41. Kf2 {[%clk 0:31:02]} 41... Rxf1+ {[%clk
0:44:22]} 42. Kxf1 {[%clk 0:31:29]} 42... f6 {[%clk 0:44:23]} 43. Qd7 {[%clk
0:31:06]} 43... Re8 {[%clk 0:43:55]} 44. Qxe7 {[%clk 0:29:56]} 44... Rxe7 {[%clk
0:43:40]} 45. Nc4 {[%clk 0:30:23]} 45... Nd5 {[%clk 0:43:45]} 46. Nd6 {[%clk
0:30:46]} 46... Rc7 {[%clk 0:42:36]} 47. b5 {[%clk 0:30:35]} 47... Bf8 {[%clk
0:40:25]} 48. b6 {[%clk 0:30:52]} 48... Rc2 {[%clk 0:40:48]} 49. Ba3 {[%clk
0:31:18]} 49... h5 {[%clk 0:40:35]} 50. Nf2 {[%clk 0:31:28]} 50... Ra2 {[%clk
0:40:20]} 51. Bc5 {[%clk 0:31:52]} 51... Bxd6 {[%clk 0:40:02]} 0-1

[Variant "Standard"]
[Site "Europe Echecs"]